{"text_format":"3","workbook":"xlsx","n_sheets":2,"sheets":["Sažetak proračuna","Detalji proračuna"],"not_rendered":{"images":1,"defined_names":1},"read":"whole","date_system":"1900"}

{"sheet":"Sažetak proračuna","index":0,"n_rows":28,"n_cols":7,"rows_kept":28}
[{"$nulls":6}," "]
[]
[null,"UKUPAN PRORAČUN ZA VJENČANJE",{"v":20000,"d":"20,000 kn"}]
[]
[null,"TROŠKOVI","Dodjela \n%","Dodijeljeni proračun","Procijenjeni \nTroškovi","Stvarni \nTroškovi"]
[null,"Prijem",{"v":0.5,"d":"50%"},{"$f":"Ukupan_Proračun_Za_Vjenčanje*'Sažetak proračuna'!$C6","v":{"v":10000,"d":"10,000 kn"}},{"$f":"Tablica_Prijem[[#Totals],[Procijenjeni troškovi]]","v":{"v":0,"d":"0 kn"}},{"$f":"Tablica_Prijem[[#Totals],[Stvarni troškovi]]","v":{"v":0,"d":"0 kn"}}]
[null,"Odjeća",{"v":0.1,"d":"10%"},{"$f":"Ukupan_Proračun_Za_Vjenčanje*'Sažetak proračuna'!$C7","v":{"v":2000,"d":"2,000 kn"}},{"$f":"Tablica_Odjeća[[#Totals],[Procijenjeni troškovi]]","v":{"v":0,"d":"0 kn"}},{"$f":"Tablica_Odjeća[[#Totals],[Stvarni troškovi]]","v":{"v":0,"d":"0 kn"}}]
[null,"Cvijeće i ukrasi",{"v":0.1,"d":"10%"},{"$f":"Ukupan_Proračun_Za_Vjenčanje*'Sažetak proračuna'!$C8","v":{"v":2000,"d":"2,000 kn"}},{"$f":"Tablica_CvijećeIUkrasi[[#Totals],[Procijenjeni troškovi]]","v":{"v":0,"d":"0 kn"}},{"$f":"Tablica_CvijećeIUkrasi[[#Totals],[Stvarni troškovi]]","v":{"v":0,"d":"0 kn"}}]
[null,"Glazba",{"v":0.1,"d":"10%"},{"$f":"Ukupan_Proračun_Za_Vjenčanje*'Sažetak proračuna'!$C9","v":{"v":2000,"d":"2,000 kn"}},{"$f":"Tablica_Glazba[[#Totals],[Procijenjeni troškovi]]","v":{"v":0,"d":"0 kn"}},{"$f":"Tablica_Glazba[[#Totals],[Stvarni troškovi]]","v":{"v":0,"d":"0 kn"}}]
[null,"Fotografije i videozapisi",{"v":0.1,"d":"10%"},{"$f":"Ukupan_Proračun_Za_Vjenčanje*'Sažetak proračuna'!$C10","v":{"v":2000,"d":"2,000 kn"}},{"$f":"Tablica_FotografijeIVideo[[#Totals],[Procijenjeni troškovi]]","v":{"v":0,"d":"0 kn"}},{"$f":"Tablica_FotografijeIVideo[[#Totals],[Stvarni troškovi]]","v":{"v":0,"d":"0 kn"}}]
[null,"Usluge i darovi",{"v":0.03,"d":"3%"},{"$f":"Ukupan_Proračun_Za_Vjenčanje*'Sažetak proračuna'!$C11","v":{"v":600,"d":"600 kn"}},{"$f":"Tablica_UslugeIDarovi[[#Totals],[Procijenjeni troškovi]]","v":{"v":0,"d":"0 kn"}},{"$f":"Tablica_UslugeIDarovi[[#Totals],[Stvarni troškovi]]","v":{"v":0,"d":"0 kn"}}]
[null,"Obred",{"v":0.02,"d":"2%"},{"$f":"Ukupan_Proračun_Za_Vjenčanje*'Sažetak proračuna'!$C12","v":{"v":400,"d":"400 kn"}},{"$f":"Tablica_Ceremonija[[#Totals],[Procijenjeni troškovi]]","v":{"v":0,"d":"0 kn"}},{"$f":"Tablica_Ceremonija[[#Totals],[Stvarni troškovi]]","v":{"v":0,"d":"0 kn"}}]
[null,"Tiskanice",{"v":0.02,"d":"2%"},{"$f":"Ukupan_Proračun_Za_Vjenčanje*'Sažetak proračuna'!$C13","v":{"v":400,"d":"400 kn"}},{"$f":"Tablica_Tiskanice[[#Totals],[Procijenjeni troškovi]]","v":{"v":0,"d":"0 kn"}},{"$f":"Tablica_Tiskanice[[#Totals],[Stvarni troškovi]]","v":{"v":0,"d":"0 kn"}}]
[null,"Vjenčano prstenje",{"v":0.02,"d":"2%"},{"$f":"Ukupan_Proračun_Za_Vjenčanje*'Sažetak proračuna'!$C14","v":{"v":400,"d":"400 kn"}},{"$f":"Tablica_VjenčanoPrstenje[[#Totals],[Procijenjeni troškovi]]","v":{"v":0,"d":"0 kn"}},{"$f":"Tablica_VjenčanoPrstenje[[#Totals],[Stvarni troškovi]]","v":{"v":0,"d":"0 kn"}}]
[null,"Prijevoz",{"v":0.01,"d":"1%"},{"$f":"Ukupan_Proračun_Za_Vjenčanje*'Sažetak proračuna'!$C15","v":{"v":200,"d":"200 kn"}},{"$f":"Tablica_Prijevoz[[#Totals],[Procijenjeni troškovi]]","v":{"v":0,"d":"0 kn"}},{"$f":"Tablica_Prijevoz[[#Totals],[Stvarni troškovi]]","v":{"v":0,"d":"0 kn"}}]
[null,"Zbroj",{"$f":"SUM(C6:C15)","v":{"v":1,"d":"100%"}},{"$f":"SUM(D6:D15)","v":{"v":20000,"d":"20,000 kn"}},{"v":0,"d":"0 kn"},{"v":0,"d":"0 kn"}]
[]
[null,"DOPRINOSI"]
[null,"Izvor sredstava","Doprinos"]
[null,"Štednja",{"v":10000,"d":"10,000 kn"}]
[null,"Mama i tata partnera 1",{"v":4000,"d":"4,000 kn"}]
[null,"Djed i baka partnera 1",{"v":2000,"d":"2,000 kn"}]
[null,"Mama i tata partnera 2",{"v":4000,"d":"4,000 kn"}]
[null,"Djed i baka partnera 2",{"v":4000,"d":"4,000 kn"}]
[null,"Ostali doprinosi",{"v":2000,"d":"2,000 kn"}]
[null,"Zbroj",{"$f":"SUBTOTAL(109,Tablica_Doprinosi[Doprinos])","v":{"v":26000,"d":"26,000 kn"}}]
[]
[null,{"$f":"IF(Tablica_Doprinosi[[#Totals],[Doprinos]]<Ukupan_Proračun_Za_Vjenčanje,\"Razlika koju treba nadoknaditi\",\"Raspoloživa dodatna sredstva\")","v":"Raspoloživa dodatna sredstva"},{"$f":"IF(Tablica_Doprinosi[[#Totals],[Doprinos]]<Ukupan_Proračun_Za_Vjenčanje,Ukupan_Proračun_Za_Vjenčanje-Tablica_Doprinosi[[#Totals],[Doprinos]],Tablica_Doprinosi[[#Totals],[Doprinos]]-Ukupan_Proračun_Za_Vjenčanje)","v":{"v":6000,"d":"6,000 kn"}}]

{"sheet":"Detalji proračuna","index":1,"n_rows":80,"n_cols":4,"rows_kept":80}
[]
[null,"PRIJEM","Procijenjeni troškovi","Stvarni troškovi"]
[null,"Mjesto održavanja i iznajmljivanje"]
[null,"Hrana i usluge"]
[null,"Pića"]
[null,"Torta"]
[null,"Razne naknade"]
[null,"Zbroj",{"$f":"SUBTOTAL(109,Tablica_Prijem[Procijenjeni troškovi])","v":{"v":0,"d":"0.00 kn"}},{"$f":"SUBTOTAL(109,Tablica_Prijem[Stvarni troškovi])","v":{"v":0,"d":"0.00 kn"}}]
[]
[null,"ODJEĆA","Procijenjeni troškovi","Stvarni troškovi"]
[null,"Smoking, odijelo i/ili haljine"]
[null,"Prepravci"]
[null,"Ukras za glavu i veo"]
[null,"Dodaci"]
[null,"Frizura i šminka"]
[null,"Razne naknade"]
[null,"Zbroj",{"$f":"SUBTOTAL(109,Tablica_Odjeća[Procijenjeni troškovi])","v":{"v":0,"d":"0.00 kn"}},{"$f":"SUBTOTAL(109,Tablica_Odjeća[Stvarni troškovi])","v":{"v":0,"d":"0.00 kn"}}]
[]
[null,"CVIJEĆE I UKRASI","Procijenjeni troškovi","Stvarni troškovi"]
[null,"Cvjetni aranžmani za ceremoniju"]
[null,"Pupoljci i košara djevojčice koja baca cvijeće"]
[null,"Jastučić za prsten"]
[null,"Buketi"]
[null,"Ukrasi za zapučak"]
[null,"Ukrasi za zapešće"]
[null,"Dekoracije prijema"]
[null,"Rasvjeta"]
[null,"Razne naknade"]
[null,"Zbroj",{"$f":"SUBTOTAL(109,Tablica_CvijećeIUkrasi[Procijenjeni troškovi])","v":{"v":0,"d":"0.00 kn"}},{"$f":"SUBTOTAL(109,Tablica_CvijećeIUkrasi[Stvarni troškovi])","v":{"v":0,"d":"0.00 kn"}}]
[]
[null,"GLAZBA","Procijenjeni troškovi","Stvarni troškovi"]
[null,"Glazbenici za obred"]
[null,"Glazbenici za koktel zabavu"]
[null,"Bend za prijem, DJ ili zabava"]
[null,"Iznajmljivanje zvučnog sustava ili plesnog podija"]
[null,"Razne naknade"]
[null,"Zbroj",{"$f":"SUBTOTAL(109,Tablica_Glazba[Procijenjeni troškovi])","v":{"v":0,"d":"0.00 kn"}},{"$f":"SUBTOTAL(109,Tablica_Glazba[Stvarni troškovi])","v":{"v":0,"d":"0.00 kn"}}]
[]
[null,"FOTOGRAFIJE I VIDEOZAPISI","Procijenjeni troškovi","Stvarni troškovi"]
[null,"Fotografije"]
[null,"Videosnimke"]
[null,"Dodatni ispisi i albumi"]
[null,"Razne naknade"]
[null,"Zbroj",{"$f":"SUBTOTAL(109,Tablica_FotografijeIVideo[Procijenjeni troškovi])","v":{"v":0,"d":"0.00 kn"}},{"$f":"SUBTOTAL(109,Tablica_FotografijeIVideo[Stvarni troškovi])","v":{"v":0,"d":"0.00 kn"}}]
[]
[null,"USLUGE I DAROVI","Procijenjeni troškovi","Stvarni troškovi"]
[null,"Darovi dobrodošlice"]
[null,"Pokloni za zabavu"]
[null,"Razne naknade"]
[null,"Zbroj",{"$f":"SUBTOTAL(109,Tablica_UslugeIDarovi[Procijenjeni troškovi])","v":{"v":0,"d":"0.00 kn"}},{"$f":"SUBTOTAL(109,Tablica_UslugeIDarovi[Stvarni troškovi])","v":{"v":0,"d":"0.00 kn"}}]
[]
[null,"OBRED","Procijenjeni troškovi","Stvarni troškovi"]
[null,"Naknada za dvoranu"]
[null,"Naknada za matičara ili donacija crkvi"]
[null,"Razne naknade"]
[null,"Zbroj",{"$f":"SUBTOTAL(109,Tablica_Ceremonija[Procijenjeni troškovi])","v":{"v":0,"d":"0.00 kn"}},{"$f":"SUBTOTAL(109,Tablica_Ceremonija[Stvarni troškovi])","v":{"v":0,"d":"0.00 kn"}}]
[]
[null,"TISKANICE","Procijenjeni troškovi","Stvarni troškovi"]
[null,"Posjetnice za vjenčanje"]
[null,"Pozivnice i odgovori na pozivnice"]
[null,"Programi"]
[null,"Kartice s rasporedom sjedenja"]
[null,"Jelovnici"]
[null,"Zahvalnice"]
[null,"Poštarina"]
[null,"Razne naknade"]
[null,"Zbroj",{"$f":"SUBTOTAL(109,Tablica_Tiskanice[Procijenjeni troškovi])","v":{"v":0,"d":"0.00 kn"}},{"$f":"SUBTOTAL(109,Tablica_Tiskanice[Stvarni troškovi])","v":{"v":0,"d":"0.00 kn"}}]
[]
[null,"VJENČANO PRSTENJE","Procijenjeni troškovi","Stvarni troškovi"]
[null,"Vjenčano prstenje"]
[null,"Dodaci za prstenje"]
[null,"Zbroj",{"$f":"SUBTOTAL(109,Tablica_VjenčanoPrstenje[Procijenjeni troškovi])","v":{"v":0,"d":"0.00 kn"}},{"$f":"SUBTOTAL(109,Tablica_VjenčanoPrstenje[Stvarni troškovi])","v":{"v":0,"d":"0.00 kn"}}]
[]
[null,"PRIJEVOZ","Procijenjeni troškovi","Stvarni troškovi"]
[null,"Najam glavnog automobila"]
[null,"Najam automobila za goste"]
[null,"Prijevoz za goste izvan grada"]
[null,"Usluga parkiranja"]
[null,"Razne naknade"]
[null,"Zbroj",{"$f":"SUBTOTAL(109,Tablica_Prijevoz[Procijenjeni troškovi])","v":{"v":0,"d":"0.00 kn"}},{"$f":"SUBTOTAL(109,Tablica_Prijevoz[Stvarni troškovi])","v":{"v":0,"d":"0.00 kn"}}]